Cogmind - Beta 16.1 @@@ ROGUE MODE // 2026.02.10 @ 23:37:38 Player: Rudrot Result: Destroyed by Y-45 Defender with Beam Rifle Performance ------------- Evolutions (2) 1000 Regions Visited (3) 600 Robots Destroyed (45) 225 Value Destroyed (1187) 1187 Prototype IDs (1) 20 Alien Tech Used (0) 0 Bonus (0) 0 TOTAL SCORE: 3032 Bonus ------- None Cogmind --------- Core Integrity 0/550 Matter 280/300 Energy 140/140 System Corruption 0% Temperature Cool (9) Movement Walking (105) Location -8/Materials Parts ------- > --- POWER (1) -------- Light Deuterium Engine > --- PROPULSION (3) --- Aluminum Leg Carbon-fiber Leg VSS Leg > --- UTILITY (5) ------ Visual Processing Unit Sensor Array Signal Interpreter Makeshift Thermal Plating > --- WEAPON (2) ------- Rocket Launcher Hammer > --- INVENTORY (5) ---- Light Nuclear Core Cesium-ion Thruster Shock Bomb Launcher Advanced EMP Blaster Peak State ------------ > --- POWER ------------ Light Deuterium Engine > --- PROPULSION ------- Aluminum Leg Carbon-fiber Leg VSS Leg > --- UTILITY ---------- Visual Processing Unit Sensor Array Signal Interpreter Makeshift Thermal Plating > --- WEAPON ----------- Rocket Launcher Hammer > --- INVENTORY -------- Light Nuclear Core Cesium-ion Thruster Shock Bomb Launcher Advanced EMP Blaster [Rating: 22] Favorites ----------- Power Improved Ion Engine Engine Improved Ion Engine Power Core Light Nuclear Core Propulsion Flight Unit Treads Light Treads Leg VSS Leg Hover Unit Hover Unit Flight Unit Flight Unit Utility Sensor Array Device Sensor Array Storage Small Storage Unit Processor Visual Processing Unit Protection Light Armor Plating Weapon Hammer Energy Gun Subdweller Laser Ballistic Gun Assault Rifle Ballistic Cannon Battle Cannon Launcher Advanced EMP Blaster Special Weapon Flamer Impact Weapon Hammer Build | -11 -10 -10 -8 ------- Run | Yrd Mat Sub Mat Slots Evolved 4 | . . . 4 Power . | . . . . Propulsion 1 | . . . 1 Utility 3 | . . . 3 Weapon . | . . . . Parts Attached 46 | 6 9 7 24 Power 8 | 1 2 1 4 Engine 7 | 1 2 1 3 Core 1 | . . . 1 Reactor . | . . . . Propulsion 16 | 2 5 1 8 Treads 1 | . . . 1 Leg 6 | 2 . . 4 Wheel . | . . . . Hover 2 | . 1 1 . Flight 7 | . 4 . 3 Utility 10 | 1 1 1 7 Device 3 | . 1 1 1 Storage 1 | 1 . . . Processor 2 | . . . 2 Hackware . | . . . . Protection 4 | . . . 4 Artifact . | . . . . Weapon 12 | 2 1 4 5 Energy Gun 3 | 1 . 1 1 Energy Cannon . | . . . . Ballistic Gun 3 | 1 1 1 . Ballistic Cannon 1 | . . 1 . Launcher 3 | . . 1 2 Special Weapon 1 | . . . 1 Impact Weapon 1 | . . . 1 Slashing Weapon . | . . . . Piercing Weapon . | . . . . Special Melee Weapon . | . . . . Unidentified Prototypes 1 | . . . 1 Parts Lost 17 | . 2 4 11 Power 4 | . 1 1 2 Propulsion 6 | . 1 2 3 Utility 4 | . . 1 3 Weapon 3 | . . . 3 Highest Loss Streak 5 | . 1 4 5 To Critical Strikes . | . . . . Average Backups 4 | 1 5 5 4 Power . | . . . . Propulsion . | . 1 1 . Utility 1 | . . 1 2 Weapon 1 | . 1 2 1 Tool/Special . | . . . . Unused Backups 6 | . 3 2 1 Power 1 | . 1 . . Propulsion . | . . . . Utility 3 | . 1 2 . Weapon 1 | . . . 1 Tool/Special 1 | . 1 . . Average Slot Usage (%) 57 | . 92 51 48 Engine 6 | . 13 4 5 Leg 9 | . 7 . 12 Flight 8 | . 20 15 3 Device 8 | . 8 13 6 Storage 3 | . 13 5 . Processor 1 | . . . 2 Protection 3 | . . . 5 Energy Gun 2 | . 4 . 2 Ballistic Gun 5 | . 22 5 . Impact Weapon 4 | . . . 6 Peak Build Rating 22 | 6 8 10 22 Average Rating 8 | 4 7 4 10 On Entrance 4 | . 6 8 3 Avg Prop Armor Cover (%) 3 | . 3 . 3 Naked Turns 41 | . . . 41 Heaviest Build 18 | 13 13 12 18 Greatest Support 37 | 20 20 18 37 Greatest Overweight (x) 3 | . 3 1 2 Average Overweight (x) . | . . . . Largest Inventory Capacity 8 | 8 8 8 5 Average Capacity 5 | 7 7 6 5 Most Carried 8 | 4 7 8 5 Average Carried 4 | 1 5 5 4 Final Capacity 8 | 8 8 5 5 Final Carried 7 | 2 7 5 4 Class Distribution -------------------- 83% | Mutant 7% | Scavenger-Mutant 4% | Assassin 3% | Scavenger-Assassin Dominant Class ---------------- Mutant | -10/Materials Mutant | -10/Subcaves Mutant | -8/Materials Resources | -11 -10 -10 -8 ----------- Run | Yrd Mat Sub Mat Matter Collected 1040 | 260 218 153 409 Remotely . | . . . . Salvage Created 1733 | 74 314 44 1301 Parts 84 | 2 30 1 51 Haulers Intercepted 4 | . 2 . 2 Recyclers Shooed 1 | . . . 1 Parts Field Recycled . | . . . . Retrieved Matter . | . . . . Parts Self-Destructed . | . . . . Prevented . | . . . . Parts Restored . | . . . . Kills | -11 -10 -10 -8 ------- Run | Yrd Mat Sub Mat Combat Hostiles Destroyed 31 | . 9 2 20 Melee 4 | . . . 4 Guns 14 | . 9 . 5 AOE 8 | . . 2 6 Classes Destroyed 11 | 1 4 1 5 Worker 1 | . . . 1 Builder 1 | . . . 1 Hauler 4 | . 2 . 2 Recycler 4 | 1 . . 3 Operator 2 | . 1 . 1 Watcher 2 | . . . 2 Swarmer 10 | . 6 . 4 Grunt 14 | . 3 . 11 Sentry 4 | . . . 4 Hunter 1 | . . . 1 Subdweller 2 | . . 2 . Best Kill Streak 7 | 1 4 2 7 Combat Bots Only 5 | . 3 2 5 Max Kills in Single Turn 2 | 1 1 1 2 Gunslinging . | . . . . Exploded 2 | . . 1 2 Melee 1 | . . . 1 Uniques/NPCs Destroyed . | . . . . Combat | -11 -10 -10 -8 -------- Run | Yrd Mat Sub Mat Hostile Shots Fired 238 | . 62 17 159 Missed 96 | . 28 4 64 Hits 142 | . 34 13 95 Projectile 142 | . 34 13 95 AOE 1 | . . . 1 Critical Strikes 2 | . . . 2 Damage Taken 2160 | . 281 329 1550 Core 790 | . 75 159 556 Absorbed by Shields . | . . . . Ignored by Resistances 2 | . . . 2 Core Remaining (%) 53 | 100 . 6 . Volleys Fired 95 | 4 34 10 47 Largest 2 | 1 2 2 1 Hottest 100 | 40 60 63 100 Shots Fired 139 | 4 68 20 47 Gun 114 | 4 68 8 34 Cannon 10 | . . 10 . Launcher 14 | . . 2 12 Special 1 | . . . 1 Kinetic 78 | . 60 18 . Thermal 34 | 4 8 . 22 Explosive 9 | . . 2 7 Electromagnetic 18 | . . . 18 Robot Hit Streak 8 | 2 7 7 8 Robot Miss Streak 4 | 1 4 1 4 Penetration Max . | . . . . Secondary Targets 1 | . 1 . . Max Gunslinging Chain 1 | . 1 . . Shots Hit Robots 112 | 3 34 14 61 Core Hits 58 | 2 18 5 33 Critical Kills 2 | . . . 2 Critical Parts Destroyed 8 | . . . 8 Critical Strikes 10 | . . . 10 Smash 10 | . . . 10 Melee Attacks 44 | . . . 44 Impact 44 | . . . 44 Slashing . | . . . . Piercing . | . . . . Sneak Attacks 5 | . . . 5 Combat Hostiles . | . . . . Follow-up Attacks . | . . . . Damage Inflicted 2944 | 33 397 309 2205 Guns 885 | 33 397 52 403 Cannons 145 | . . 145 . Explosions 897 | . . 112 785 Melee 1013 | . . . 1013 Ramming 4 | . . . 4 Kinetic 541 | . 344 197 . Thermal 315 | 33 53 . 229 Explosive 444 | . . 112 332 Electromagnetic 627 | . . . 627 Impact 1013 | . . . 1013 Slashing . | . . . . Piercing . | . . . . Highest Corruption . | . . . . Average Corruption . | . . . . Corruption Purged . | . . . . Corruption Blocked . | . . . . Overload Shots . | . . . . Overflow Damage 268 | . . . 268 Projectiles . | . . . . Explosions 8 | . . . 8 Melee 260 | . . . 260 Knockbacks 5 | . . 2 3 Impact 3 | . . . 3 Kinetic 2 | . . 2 . Secondary . | . . . . Self-Inflicted Damage 74 | . . . 74 Shots 2 | . . . 2 Rammed 2 | . . . 2 Targets Rammed 2 | . . . 2 Kicked . | . . . . Crushed . | . . . . Highest Temperature 60 | . 10 . 60 Average Temperature 9 | . 4 . 13 Received Heat Transfer 663 | . 30 12 621 Siege Activations . | . . . . Martial Activations . | . . . . Shielding Activations . | . . . . Robots Disrupted . | . . . . Combat Hostiles . | . . . . Robots Corrupted 6 | . . . 6 Combat Hostiles 5 | . . . 5 Parts Fried 10 | . . . 10 Impact Corruptions 12 | . . . 12 Robots Melted . | . . . . Combat Hostiles . | . . . . Parts Melted . | . . . . Heat Transferred 525 | 75 125 . 325 Parts Sabotaged . | . . . . Parts Stolen . | . . . . Parts Stripped . | . . . . Power Chain Reactions 1 | . . . 1 Alert | -11 -10 -10 -8 ------- Run | Yrd Mat Sub Mat Maximum Alert Level 1 | . . . 1 Low Security (%) 52 | 100 100 . 32 Level 1 47 | . . . 67 Level 2 . | . . . . Level 3 . | . . . . Level 4 . | . . . . Level 5 . | . . . . High Security . | . . . . Max Security . | . . . . Peak Influence 349 | 5 99 . 349 Initial . | . . . . Average 158 | . 50 . 208 Influence Increases 1090 | 5 259 . 826 Destroy 0b10 Robot/C 580 | . 180 . 400 Destroy 0b10 Robot/NC 70 | 5 15 . 50 Destroy Leader 142 | . 34 . 108 Disable Machine 45 | . . . 45 Destroy Structure 43 | . . . 43 Partial Spotted 30 | . 15 . 15 Lose Combat Pursuer 180 | . 15 . 165 Influence Decreases 816 | 5 180 79 552 Entered New Map 39 | . . 39 . Time Decay 637 | 5 160 30 442 Lost Part 140 | . 20 10 110 Squads Dispatched 6 | . 2 . 4 Investigation 3 | . 1 . 2 Extermination . | . . . . Reinforcement 3 | . 1 . 2 Assault . | . . . . Garrison . | . . . . Intercept . | . . . . Searches Triggered . | . . . . Construction Impeded 1 | . . . 1 Haulers Reinforced . | . . . . Active Scanning Responses . | . . . . Cargo Convoy Interrupts . | . . . . Stealth | -11 -10 -10 -8 --------- Run | Yrd Mat Sub Mat Distress Signals 4 | . 2 . 2 Communications Jammed . | . . . . Distress Signals . | . . . . Times Spotted 60 | . 17 5 38 Peak Tracking Total 7 | . 4 2 7 Tactical Retreats 10 | . 1 2 7 Traps | -11 -10 -10 -8 ------- Run | Yrd Mat Sub Mat Traps Triggered 3 | . 1 1 1 Indirectly . | . . . . Trap Hack Attempts . | . . . . Triggered . | . . . . Disarmed . | . . . . Reprogrammed . | . . . . Reused . | . . . . Traps Extracted . | . . . . Installed . | . . . . Triggered . | . . . . Machines | -11 -10 -10 -8 ---------- Run | Yrd Mat Sub Mat Machines Disabled 3 | . . . 3 Max in Single Turn 2 | . . . 2 Machines Repaired . | . . . . Machines Dismantled . | . . . . Machines Sabotaged . | . . . . Overloaded Fab Kills . | . . . . Hacking | -11 -10 -10 -8 --------- Run | Yrd Mat Sub Mat Machines Accessed 3 | . 1 . 2 Terminals 2 | . 1 . 1 Fabricators . | . . . . Repair Stations . | . . . . Recycling Units . | . . . . Scanalyzers 1 | . . . 1 Garrison Access . | . . . . Total Hacks 7 | . 1 . 6 Successful 6 | . 1 . 5 Failed 1 | . . . 1 Catastrophic . | . . . . Database Lockouts . | . . . . Manual . | . . . . Terminals 3 | . 1 . 2 Fabricators . | . . . . Repair Stations . | . . . . Recycling Units . | . . . . Scanalyzers 4 | . . . 4 Garrison Access . | . . . . Terminal Hacks 2 | . 1 . 1 Alert Level 1 | . 1 . . Dispatch Records 1 | . . . 1 Fabricator Hacks . | . . . . Repair Station Hacks . | . . . . Recycling Unit Hacks . | . . . . Scanalyzer 4 | . . . 4 Insert Component 1 | . . . 1 Analyze 1 | . . . 1 Retrieve Study 2 | . . . 2 Garrison Access Hacks . | . . . . Unauthorized Hacks . | . . . . Terminals . | . . . . Fabricators . | . . . . Repair Stations . | . . . . Recycling Units . | . . . . Scanalyzers . | . . . . Garrison Access . | . . . . Data Cores Recovered . | . . . . Used . | . . . . Hacking Detections 2 | . . . 2 Full Trace Events 1 | . . . 1 Feedback Events . | . . . . Feedback Blocked . | . . . . Robot Schematics Acquired . | . . . . Robots Built . | . . . . Authchips . | . . . . Time . | . . . . Total Robot Build Rating . | . . . . Part Schematics Acquired 1 | . . . 1 Parts Built . | . . . . Authchips . | . . . . Time . | . . . . Total Part Build Rating . | . . . . Part Studies Acquired 2 | . . . 2 Parts Repaired . | . . . . Time . | . . . . Parts Recycled . | . . . . Recycled Matter . | . . . . Retrieved Matter . | . . . . Retrieved Components . | . . . . Parts Scanalyzed 1 | . . . 1 Part Schematics Acquired 1 | . . . 1 Parts Damaged . | . . . . Bothacking | -11 -10 -10 -8 ------------ Run | Yrd Mat Sub Mat Used RIF Installer . | . . . . Robots Hacked . | . . . . Non-combat . | . . . . Combat . | . . . . Robot Hacks Applied . | . . . . Relay Couplers Released . | . . . . Fabnet Peak Effective % . | . . . . Robots Rewired . | . . . . Allies Hacked . | . . . . Hacks Repelled . | . . . . Allies | -11 -10 -10 -8 -------- Run | Yrd Mat Sub Mat Total Allies . | . . . . Largest Group . | . . . . Highest-Rated Group . | . . . . Highest-Rated Ally . | . . . . Total Orders . | . . . . Ally Attacks . | . . . . Total Damage . | . . . . Kills . | . . . . Allies Corrupted . | . . . . Allies Melted . | . . . . Intel | -11 -10 -10 -8 ------- Run | Yrd Mat Sub Mat Active Infowar (turns) 769 | . . 219 550 Optics 176 | . . . 176 Sensors 769 | . . 219 550 Robot Analysis Total . | . . . . Derelict Logs Recovered . | . . . . Drone Launches . | . . . . Drone Recoveries . | . . . . Exploration | -11 -10 -10 -8 ------------- Run | Yrd Mat Sub Mat Turns Passed 2091 | 128 390 322 1251 Spaces Moved 2286 | 91 542 601 1052 Core 167 | 8 . . 159 Treads 62 | . . . 62 Legs 719 | 83 60 . 576 Wheels . | . . . . Hover 20 | . 4 16 . Flight 1318 | . 478 585 255 Fastest Speed 34 | 50 37 37 34 Average Speed 61 | 113 48 41 74 Slowest Speed 280 | 120 280 120 160 Overloaded Moves . | . . . . Propulsion Burnouts . | . . . . Robots Hopped 4 | . 2 . 2 Potential Cave-ins . | . . . . Cave-ins Triggered . | . . . . Exploration Rate (%) 31 | 5 54 27 39 Regions Visited 3 Branch Regions 1 Pre-discovered Areas . | . . . . Known Exits Taken . | . . . . Unknown Exits Taken 3 | 1 1 1 . Scrap Searched 3 | . . 3 . Spaces Dug 12 | . . 8 4 Terrain Destroyed 71 | . . 15 56 Melee . | . . . . Projectile . | . . . . AOE 71 | . . 15 56 Terrain Rammed . | . . . . Walls Destroyed . | . . . . Machines Disabled . | . . . . Actions | -11 -10 -10 -8 --------- Run | Yrd Mat Sub Mat Total 2769 | 111 606 660 1392 Wait 202 | . . 14 188 Move 2275 | 90 537 600 1048 Hop 4 | . 2 . 2 Pick Up 29 | 8 10 7 4 Fast Attach 32 | 3 6 2 21 Attach 28 | 3 3 7 15 Detach 25 | . 5 8 12 Swap 2 | . 1 . 1 Drop 31 | 3 8 12 8 Fire 95 | 4 34 10 47 Melee 44 | . . . 44 Ram 2 | . . . 2 Kick . | . . . . Crush . | . . . . Escape Stasis . | . . . . Rewire . | . . . . Trap . | . . . . Miscellaneous . | . . . . Route ------- -11/Scrapyard -10/Materials (discovered 3 exits: [*Mat] / [*Min] / [*Sub]) -10/Subcaves -8/Materials (discovered 1 exit: *Fac) History --------- Turn | Location | Event 5 | -11/Scrapyard | Discovered new exit (range 15) 129 | -11/Scrapyard | Entered Materials 309 | -10/Materials | Build established: Mutant 479 | -10/Materials | Discovered new exit (range 9) 483 | -10/Materials | Discovered new exit (range 8) 486 | -10/Materials | Discovered new exit (range 15) 519 | -10/Materials | Entered Subcaves 581 | -10/Subcaves | Core integrity fell below 50% 604 | -10/Subcaves | Core integrity fell below 20% 645 | -10/Subcaves | Lost 4 parts (1p2n1u) 751 | -10/Subcaves | A swath of the cavern ceiling suddenly collapsed 835 | -10/Subcaves | Discovered new exit (range 5) 841 | -10/Subcaves | Entered Materials 841 | -8/Materials | Evolved 4 slots: Propulsion x1, Utility x3 1122 | -8/Materials | Lost 5 parts (2n3w) 1147 | -8/Materials | Core integrity fell below 50% 1774 | -8/Materials | Core integrity fell below 20% 2035 | -8/Materials | Lost 3 parts (1n2u) 2085 | -8/Materials | Discovered new exit (range 5) 2088 | -8/Materials | Identified exit to Factory 2092 | -8/Materials | Destroyed by Y-45 Defender with Beam Rifle Last Messages --------------- 02020_ U-05 Engineer builds a Wall. 02021_ U-05 Engineer lays Concrete. 02022_ U-05 Engineer builds a Wall. 02022_ U-05 Engineer lays Concrete. 02024_ U-05 Engineer builds a Wall. 02024_ U-05 Engineer lays Concrete. 02026_ U-05 Engineer builds a Wall. 02026_ U-05 Engineer lays Concrete. 02028_ U-05 Engineer builds a Wall. 02029_ U-05 Engineer lays Concrete. 02032_ U-05 Engineer builds a Wall. 02033_ U-05 Engineer lays Concrete. 02035_ U-05 Engineer builds a Wall. 02036_ U-05 Engineer lays Concrete. 02037_ U-05 Engineer builds a Wall. 02037_ U-05 Engineer lays Concrete. 02046_ Acquired Rocket Launcher. 02055_ R-06 Scavenger collects Arm. Treads. 02085_ EXIT=FOUND 02088_ EXIT=IDENTIFIED: FACTORY Map ----- +----------------------------------------------------+ | | | | | | | | | | | | | | | | | | | ?????????????????????????????????????????????????? | | ?????????????????????????????????????????????????? | | ?????????????????????????????????????????????????? | | ?????????????????????????????????????????????????? | | ?????????????????????????????????????????????????? | | ?????????????????????????????????????????????????? | | ?????????????????????????????????????????????????? | | ?????????????????????????????????????????????????? | | ?????????????????????????????????????????????????? | | ?????????????????????????????????????????????????? | | ??????????????????????#####??????##+##???????????? | | ??????????????????????#!! #??????# +???????????? | | ??????????????????????#!! #??????# #???????????? | | ??????????????????????#!! #####??# #???????????? | | ??????????????????????#!! #??# +???????????? | | ??????????????????????#]] < #??# #???????????? | | ??????????????????????#]]@ #??# #???????????? | | ??????????????????????##### #### #???????????? | | ??????????????????????????# #???????????? | | ??????????????????????????# #???????????? | | ??????????????????????????# #???????????# | | ???????????????????????########### ######## # | | ???????????????????????# # # | | ???????????????????????# """ # Y [ | | ???????????????????????# """"" + ######## # | | ???????????????????????# """"" # #???????????# | | ???????????????????????# """"" ] # #???????????? | | ???????????????????????# """ # ########????? | | ???????????????????????# # #! #????? | | ???????????????????????#! # # """ #????? | | ???????????????????????####+###### # """ #????? | | ??????????????????????????# #????# + """ #????? | | ??????????????????????????# #????# # #????? | | ??????????????????????????# #????# # #????? | | ??????????????????????????# #???## ########????? | | ?????????????????????????## ##### #??????????? | | ?????????????????????????# #??????????? | | ?????????????????????????# #??????????? | | ?????????????????????????# #??????????? | | ?????????????????????????# #### #??????????? | | ?????????????????????????# # ###+#####????????? | +----------------------------------------------------+ Best States ------------- Heat Dissipation 31 Energy Generation 18 Energy Capacity 265 Matter Stores 300 Matter Capacity 300 Sight Range 18 Robot Scan Range 14 Terrain Scan Density 10 Additional Mass Support 6 Armor Coverage 225 Resistance: TH 10 Evasion (%) 65 Recoil Reduction 1 Item Schematics ----------------- Reaction Control System | -8/Materials | Scanalyzed Robot Schematics ------------------ None Fabricated ------------ Nothing Repaired ---------- Nothing Studied --------- VSS Leg | -8/Materials | Hacked Hammer | -8/Materials | Hacked Alien Tech Used ----------------- None Achievements -------------- Deadly Force Overwhelming Spot Them First Sprinter Challenges ------------ None Game ------ Seed RapidAdvancedAccelerator Manual? 0 Play Time 00:59:31 Cumulative 26.2 hours Start 2026.02.10 @ 22:14:36 End 2026.02.10 @ 23:37:38 Sessions 1 Manual Loads 0 Difficulty Rogue Special Mode None Game No. 22 Rogue 22 Adventurer 0 Explorer 0 Win Type - Total 0 Types 0/0/0/0/0/0/0/0/0/0 Lore% 15 Gallery% 12 Achievement% 11 Wizard Run 0 Options --------- Layout 1 ASCII 0 Keyboard 1 Movement Numpad Keybinds 0 Fullscreen 2 Font 24/Cog Map View 50x35 Zoom Use 8% Tactical HUD 1 Map Filters NONE Filters NONE Steam 1 RUN: dc358884-911b-41b0-900e-4ce4a11ef61c